Cogmind - Beta 11 @@@ ROGUE MODE // 2022.03.21 @ 21:35:18 Player: Finestep Result: Self-destructed Performance ------------- Evolutions (3) 1500 Regions Visited (8) 1600 Robots Destroyed (129) 645 Value Destroyed (3682) 3682 Prototype IDs (28) 560 Alien Tech Used (0) 0 Bonus (1001) 1001 TOTAL SCORE: 8988 Bonus ------- High Alert Combat Kills 158 Follower Combat Kills 152 Entered Garrisons 200 Used RIF Installer 500 Aligned with FarCom 300 Friendly Fire -309 Cogmind --------- Core Integrity 697/700 Matter 269/300 Energy 87/150 System Corruption 7% Temperature Cool (0) Movement Core (1600) Ox31 Location -7/Waste Parts ------- > --- POWER (1) -------- Micro Nuclear Core > --- PROPULSION (4) --- Medium Treads > --- UTILITY (5) ------ Improved Cooling System Huge Storage Unit Targeting Computer Shield Generator > --- WEAPON (3) ------- Advanced Beam Rifle Gauss Rifle > --- INVENTORY (25) --- Micro Nuclear Core Heavy Treads Medium Reactive Plating Medium Reactive Plating Shield Generator Authchip [R/Combat] Authchip [R/Combat] Authchip [Device] Advanced Beam Rifle Advanced Beam Rifle Firepult Improved Assault Rifle Enhanced Autogun Enhanced Autogun Heavy Assault Cannon Rocket Launcher Improved Datajack Remote Datajack Remote Datajack Katana Signal Generator Peak State ------------ > --- POWER ------------ Micro Nuclear Core > --- PROPULSION ------- Medium Treads Medium Treads Medium Treads Compact Wheel > --- UTILITY ---------- Improved Cooling System Huge Storage Unit Targeting Computer Medium Reactive Plating Shield Generator > --- WEAPON ----------- Advanced Beam Rifle Advanced Beam Rifle Gauss Rifle > --- INVENTORY -------- Micro Nuclear Core Improved Heat Sink Medium Reactive Plating Medium Reactive Plating Shield Generator Authchip [R/Combat] Authchip [R/Combat] Authchip [Device] Advanced Beam Rifle Advanced Beam Rifle Firepult Improved Assault Rifle Enhanced Autogun Enhanced Autogun Heavy Assault Cannon Rocket Launcher Improved Datajack Remote Datajack Katana Signal Generator [Rating: 50] Favorites ----------- Power Light Deuterium Engine Engine Light Deuterium Engine Power Core Micro Nuclear Core Propulsion Light Treads Treads Light Treads Leg Aluminum Leg Wheel Compact Wheel Utility Targeting Computer Device Improved Heat Sink Storage Huge Storage Unit Processor Targeting Computer Hackware Relay Coupler [Grunt] Protection Hardened Light Armor Plating Weapon Light Assault Rifle Energy Gun Advanced Beam Rifle Ballistic Gun Light Assault Rifle Ballistic Cannon Heavy Assault Cannon Launcher Grenade Launcher Special Weapon Mining Laser Slashing Weapon Katana Special Melee Weapon Improved Datajack Build | -11 -10 -10 -10 -9 -8 -8 -7 -7 ------- Run | Scr Mat Min Exi Min Mat Gar Fac Was Slots Evolved 6 | . . . . . 4 . 2 . Power . | . . . . . . . . . Propulsion 2 | . . . . . 1 . 1 . Utility 3 | . . . . . 2 . 1 . Weapon 1 | . . . . . 1 . . . Parts Attached 144 | 9 12 1 4 4 55 15 43 1 Power 10 | 1 1 . . . 5 . 3 . Engine 4 | 1 1 . . . 1 . 1 . Core 6 | . . . . . 4 . 2 . Reactor . | . . . . . . . . . Propulsion 35 | 4 4 . 2 . 12 4 8 1 Treads 21 | 2 2 . 2 . 9 2 4 . Leg 2 | 2 . . . . . . . . Wheel 12 | . 2 . . . 3 2 4 1 Hover . | . . . . . . . . . Flight . | . . . . . . . . . Utility 35 | 1 4 . 1 . 11 4 14 . Device 12 | . . . . . 3 1 8 . Storage 6 | 1 2 . 1 . 2 . . . Processor 2 | . 1 . . . . . 1 . Hackware 3 | . . . . . . 1 2 . Protection 12 | . 1 . . . 6 2 3 . Artifact . | . . . . . . . . . Weapon 64 | 3 3 1 1 4 27 7 18 . Energy Gun 15 | 2 1 . . . 6 . 6 . Energy Cannon . | . . . . . . . . . Ballistic Gun 32 | 1 1 1 1 2 15 3 8 . Ballistic Cannon 1 | . . . . . 1 . . . Launcher 4 | . 1 . . 2 . 1 . . Special Weapon 6 | . . . . . 5 . 1 . Impact Weapon . | . . . . . . . . . Slashing Weapon 3 | . . . . . . 2 1 . Piercing Weapon . | . . . . . . . . . Special Melee Weapon 3 | . . . . . . 1 2 . Unidentified Prototypes 5 | . . . . . 4 . 1 . Parts Lost 11 | . 1 1 . . 6 . 1 2 Power 3 | . 1 . . . 2 . . . Propulsion 3 | . . . . . . . 1 2 Utility 2 | . . . . . 2 . . . Weapon 3 | . . 1 . . 2 . . . Highest Loss Streak 2 | . 1 1 . . 2 . 1 2 To Critical Strikes . | . . . . . . . . . Average Slot Usage (%) 99 | . 98 99 100 100 98 100 99 95 Engine 8 | . 14 14 14 14 5 9 1 . Core 1 | . . . . . 3 . 5 7 Treads 17 | . . . 24 28 22 20 16 13 Leg 2 | . 16 . . . . . . . Wheel 8 | . 10 28 3 . 3 6 13 13 Device 5 | . . . . . 6 8 11 15 Storage 10 | . 14 14 14 14 9 9 7 7 Processor 10 | . 11 14 14 14 9 9 9 7 Protection 5 | . 1 . . . 10 9 6 5 Energy Gun 1 | . 3 . . . . . 7 14 Ballistic Gun 23 | . 24 27 28 27 25 24 14 7 Naked Turns . | . . . . . . . . . Heaviest Build 118 | 11 87 87 87 49 100 115 118 106 Greatest Support 60 | 40 40 20 40 40 60 60 32 24 Greatest Overweight (x) 8 | . 8 4 4 1 6 3 7 4 Average Overweight (x) 2 | . 1 4 1 1 . 1 3 4 Largest Inventory Capacity 25 | 8 25 25 25 20 25 25 25 25 Average Capacity 21 | 7 15 25 20 20 21 25 25 25 Most Carried 25 | 7 23 25 25 20 25 25 25 25 Average Carried 21 | 4 12 24 20 19 21 24 24 24 Final Capacity 25 | 8 25 25 20 20 25 25 25 25 Final Carried 25 | 7 23 24 20 20 25 25 25 24 Class Distribution -------------------- 39% | Mutant 17% | Scavenger-Skirmisher 14% | Skirmisher 12% | Scavenger-Tank 8% | Tank 7% | Scavenger-Mutant Dominant Class ---------------- Mutant | -10/Materials Mutant | -10/Mines Mutant | -10/Exiles Mutant | -9/Mines Scavenger-Skirmisher | -8/Materials Skirmisher | -8/Garrison Scavenger-Tank | -7/Factory Tank | -7/Waste Resources | -11 -10 -10 -10 -9 -8 -8 -7 -7 ----------- Run | Scr Mat Min Exi Min Mat Gar Fac Was Matter Collected 3114 | 303 267 30 20 116 1176 461 695 46 Remotely . | . . . . . . . . . Salvage Created 5174 | 129 741 77 . 232 2150 574 788 483 Parts 304 | 12 54 9 . 14 129 45 37 4 Haulers Intercepted 9 | . 2 . . . 3 . 4 . Recyclers Shooed 4 | . 2 . . . 2 . . . Parts Field Recycled . | . . . . . . . . . Retrieved Matter . | . . . . . . . . . Parts Self-Destructed . | . . . . . . . . . Prevented . | . . . . . . . . . Kills | -11 -10 -10 -10 -9 -8 -8 -7 -7 ------- Run | Scr Mat Min Exi Min Mat Gar Fac Was Combat Hostiles Destroyed 80 | . 13 5 . 5 31 19 5 2 Guns 69 | . 11 5 . . 31 15 5 2 AOE 11 | . 2 . . 5 . 4 . . Classes Destroyed 15 | 2 7 . . 1 3 . 1 1 Worker 10 | . 1 . . 1 6 . 2 . Builder 2 | . 1 . . . 1 . . . Tunneler 5 | 4 . . . . 1 . . . Hauler 9 | . 2 . . . 3 . 4 . Recycler 11 | 1 3 . . 1 3 . 3 . Operator 1 | . 1 . . . . . . . Watcher 9 | . 2 . . . 5 . 2 . Swarmer 28 | . 6 5 . 3 4 10 . . Grunt 37 | . 7 . . 1 19 7 3 . Brawler 3 | . . . . 1 2 . . . Sentry 6 | . . . . . 4 2 . . Hunter 2 | . . . . . . . 2 . Programmer 2 | . . . . . 1 . 1 . Heavy 1 | . . . . . 1 . . . Compactor 2 | . . . . . . . . 2 Thug 1 | . . . . 1 . . . . Best Kill Streak 6 | 4 5 3 . 4 5 6 4 1 Combat Bots Only 6 | . 4 3 . 3 5 6 2 1 Max Kills in Single Turn 3 | 2 2 2 . 3 2 3 1 1 Gunslinging 1 | . . . . . 1 1 . . Exploded 3 | . 2 . . 2 . 3 . . Melee . | . . . . . . . . . Uniques/NPCs Destroyed . | . . . . . . . . . Combat | -11 -10 -10 -10 -9 -8 -8 -7 -7 -------- Run | Scr Mat Min Exi Min Mat Gar Fac Was Damage Taken 3132 | . 371 186 . 86 1598 503 325 63 Core 410 | . 91 37 . 29 228 22 3 . Absorbed by Shields 190 | . . . . . . 68 99 23 Redirected to Shielding 5 | . . . . . 5 . . . Regen/Repaired (Parts) 64 | . . . . . 64 . . . Core Remaining (%) 63 | 100 . . . 37 . 54 . . Volleys Fired 335 | 13 82 13 . 16 123 40 35 13 Largest 3 | 2 2 2 . 2 3 3 3 3 Hottest 183 | 60 60 40 . 40 137 71 183 150 Shots Fired 831 | 26 160 25 . 29 347 111 95 38 Gun 811 | 26 158 25 . 26 338 108 92 38 Cannon . | . . . . . . . . . Launcher 8 | . 2 . . 3 . 3 . . Special 12 | . . . . . 9 . 3 . Kinetic 684 | 13 132 25 . 26 314 108 54 12 Thermal 122 | 13 26 . . . 19 . 38 26 Explosive 8 | . 2 . . 3 . 3 . . Electromagnetic 14 | . . . . . 14 . . . Robot Hit Streak 27 | 8 12 4 . 9 27 14 20 11 Robot Miss Streak 4 | 2 3 3 . 1 4 3 3 2 Penetration Max 1 | . . . . . . . 1 . Secondary Targets 17 | . . . . . 10 4 1 2 Max Gunslinging Chain 2 | . . . . . 1 2 1 1 Shots Hit Robots 569 | 19 103 11 . 20 248 68 70 30 Core Hits 251 | 7 46 7 . 17 117 29 22 6 Critical Kills . | . . . . . . . . . Critical Parts Destroyed 3 | . . . . . 3 . . . Critical Strikes 6 | . . . . . 3 . 2 1 Burn 3 | . . . . . . . 2 1 Destroy 3 | . . . . . 3 . . . Melee Attacks 16 | . . . . . . 7 9 . Impact . | . . . . . . . . . Slashing 8 | . . . . . . 5 3 . Piercing . | . . . . . . . . . Sneak Attacks 2 | . . . . . . 1 1 . Combat Hostiles . | . . . . . . . . . Follow-up Attacks . | . . . . . . . . . Damage Inflicted 7968 | 192 1066 122 . 511 3044 1243 1179 611 Guns 7194 | 192 881 122 . 159 3041 1009 1179 611 Cannons . | . . . . . . . . . Explosions 763 | . 185 . . 352 . 226 . . Melee . | . . . . . . . . . Ramming 11 | . . . . . 3 8 . . Kinetic 5645 | 73 709 122 . 159 2698 1009 664 211 Thermal 1413 | 119 172 . . 88 119 . 515 400 Explosive 675 | . 185 . . 264 . 226 . . Electromagnetic 224 | . . . . . 224 . . . Impact . | . . . . . . . . . Slashing . | . . . . . . . . . Piercing . | . . . . . . . . . Highest Corruption 7 | . . . . . . . . 7 Average Corruption 7 | . . . . . . . . 7 Corruption Purged . | . . . . . . . . . Corruption Blocked . | . . . . . . . . . Effects 5 | . . . . . . . . 5 Message Errors 1 | . . . . . . . . 1 Matter Fused 1 | . . . . . . . . 1 Heat Flow Errors 1 | . . . . . . . . 1 Data Loss (minor) 1 | . . . . . . . . 1 Weapon Failures 1 | . . . . . . . . 1 Overload Shots . | . . . . . . . . . Overflow Damage 13 | . . . . 13 . . . . Projectiles . | . . . . . . . . . Explosions 13 | . . . . 13 . . . . Melee . | . . . . . . . . . Knockbacks . | . . . . . . . . . Impact . | . . . . . . . . . Kinetic . | . . . . . . . . . Secondary . | . . . . . . . . . Self-Inflicted Damage 9 | . . . . . . 9 . . Shots 1 | . . . . . . 1 . . Rammed 3 | . . . . . 2 1 . . Targets Rammed 3 | . . . . . 2 1 . . Kicked . | . . . . . . . . . Crushed . | . . . . . . . . . Highest Temperature 435 | 60 80 . . . 238 22 435 91 Average Temperature 35 | 30 31 . . . 35 5 69 7 Received Heat Transfer 1097 | . 126 . . . 693 215 63 . Siege Activations . | . . . . . . . . . Robots Corrupted . | . . . . . . . . . Combat Hostiles . | . . . . . . . . . Parts Fried . | . . . . . . . . . Impact Corruptions . | . . . . . . . . . Robots Melted . | . . . . . . . . . Combat Hostiles . | . . . . . . . . . Parts Melted 8 | . . . . . 3 . 5 . Heat Transferred 2921 | 275 400 . . 100 259 . 1073 814 Parts Sabotaged . | . . . . . . . . . Parts Stolen . | . . . . . . . . . Parts Stripped . | . . . . . . . . . Power Chain Reactions . | . . . . . . . . . Missiles Intercepted . | . . . . . . . . . Alert | -11 -10 -10 -10 -9 -8 -8 -7 -7 ------- Run | Scr Mat Min Exi Min Mat Gar Fac Was Peak Influence 688 | 25 400 222 . 259 500 688 404 107 Initial 361 | . 16 112 . . 22 101 361 92 Average 306 | 9 258 115 . 147 313 515 258 96 Maximum Alert Level 2 | . 2 1 . 1 2 2 2 . Low Security (%) 31 | 100 15 93 . 53 26 12 24 100 Level 1 36 | . 74 6 . 46 32 6 70 . Level 2 32 | . 10 . . . 40 80 4 . Level 3 . | . . . . . . . . . Level 4 . | . . . . . . . . . Level 5 . | . . . . . . . . . High Security . | . . . . . . . . . Max Security . | . . . . . . . . . Squads Dispatched 17 | . 4 . . . 8 . 5 . Investigation 5 | . 3 . . . 2 . . . Extermination 1 | . . . . . . . 1 . Reinforcement 7 | . 1 . . . 2 . 4 . Assault . | . . . . . . . . . Garrison 4 | . . . . . 4 . . . Intercept . | . . . . . . . . . Searches Triggered . | . . . . . . . . . Construction Impeded 1 | . . . . . . . 1 . Haulers Reinforced 1 | . . . . . . . 1 . Active Scanning Responses . | . . . . . . . . . Cargo Convoy Interrupts . | . . . . . . . . . Stealth | -11 -10 -10 -10 -9 -8 -8 -7 -7 --------- Run | Scr Mat Min Exi Min Mat Gar Fac Was Distress Signals 2 | . 1 . . . 1 . . . Communications Jammed . | . . . . . . . . . Distress Signals . | . . . . . . . . . Times Spotted 132 | . 30 6 . 8 44 20 18 6 Peak Tracking Total 6 | . 3 3 . 4 6 5 3 4 Tactical Retreats 3 | . 1 . . . 2 . . . Traps | -11 -10 -10 -10 -9 -8 -8 -7 -7 ------- Run | Scr Mat Min Exi Min Mat Gar Fac Was Traps Triggered 20 | . 2 . . . . 14 4 . Indirectly . | . . . . . . . . . Trap Hack Attempts . | . . . . . . . . . Triggered . | . . . . . . . . . Disarmed . | . . . . . . . . . Reprogrammed . | . . . . . . . . . Reused . | . . . . . . . . . Traps Extracted . | . . . . . . . . . Installed . | . . . . . . . . . Triggered . | . . . . . . . . . Machines | -11 -10 -10 -10 -9 -8 -8 -7 -7 ---------- Run | Scr Mat Min Exi Min Mat Gar Fac Was Machines Disabled 12 | . 2 . . 4 . 3 3 . Max in Single Turn 4 | . 2 . . 4 . 1 2 . Garrison Access 1 | . . . . . . . 1 . Garrison Relay 3 | . . . . . . 3 . . Machines Sabotaged . | . . . . . . . . . Garrisons Compromised . | . . . . . . . . . Overloaded Fab Kills . | . . . . . . . . . Hacking | -11 -10 -10 -10 -9 -8 -8 -7 -7 --------- Run | Scr Mat Min Exi Min Mat Gar Fac Was Machines Accessed 19 | . 5 . 2 . 7 . 5 . Terminals 8 | . 4 . . . 3 . 1 . Fabricators 1 | . . . . . . . 1 . Repair Stations 2 | . . . . . 1 . 1 . Recycling Units 2 | . 1 . . . 1 . . . Scanalyzers 2 | . . . . . 1 . 1 . Garrison Access 2 | . . . . . 1 . 1 . Total Hacks 55 | . 21 . 5 . 21 . 8 . Successful 36 | . 11 . 5 . 15 . 5 . Failed 19 | . 10 . . . 6 . 3 . Catastrophic 1 | . . . . . 1 . . . Database Lockouts . | . . . . . . . . . Manual 25 | . 11 . 1 . 11 . 2 . Terminals 31 | . 18 . . . 11 . 2 . Fabricators 1 | . . . . . . . 1 . Repair Stations 4 | . . . . . 3 . 1 . Recycling Units 5 | . 3 . . . 2 . . . Scanalyzers 5 | . . . . . 3 . 2 . Garrison Access 4 | . . . . . 2 . 2 . Terminal Hacks 15 | . 5 . 5 . 4 . 1 . Record 4 | . . . 4 . . . . . Part Schematic 2 | . 2 . . . . . . . Terminal Index 2 | . . . . . 1 . 1 . Unreport Threat 2 | . . . . . 2 . . . Locate Traps 1 | . 1 . . . . . . . Hauler Manifests 2 | . 1 . . . 1 . . . Zone Layout 1 | . 1 . . . . . . . EX-Prototype ID Bank 1 | . . . 1 . . . . . Fabricator Hacks . | . . . . . . . . . Repair Station Hacks 2 | . . . . . 2 . . . Scan Component 1 | . . . . . 1 . . . Repair 1 | . . . . . 1 . . . Recycling Unit Hacks 2 | . 1 . . . 1 . . . Retrieve Components 2 | . 1 . . . 1 . . . Scanalyzer 3 | . . . . . 3 . . . Insert Component 1 | . . . . . 1 . . . Analyze 2 | . . . . . 2 . . . Garrison Access Hacks 3 | . . . . . 1 . 2 . Unlock Access 1 | . . . . . 1 . . . Seal Access 1 | . . . . . . . 1 . Coupler Status 1 | . . . . . . . 1 . Unauthorized Hacks 11 | . 5 . . . 4 . 2 . Terminals 6 | . 4 . . . 2 . . . Track 1 | . 1 . . . . . . . Botnet 4 | . 2 . . . 2 . . . Operators 1 | . 1 . . . . . . . Fabricators 1 | . . . . . . . 1 . Haulers 1 | . . . . . . . 1 . Repair Stations 1 | . . . . . . . 1 . Mechanics 1 | . . . . . . . 1 . Recycling Units 2 | . 1 . . . 1 . . . Tunnel 2 | . 1 . . . 1 . . . Scanalyzers . | . . . . . . . . . Garrison Access 1 | . . . . . 1 . . . Restock 1 | . . . . . 1 . . . Data Cores Recovered . | . . . . . . . . . Used . | . . . . . . . . . Hacking Detections 15 | . 5 . . . 6 . 4 . Full Trace Events 1 | . . . . . 1 . . . Feedback Events . | . . . . . . . . . Feedback Blocked . | . . . . . . . . . Robot Schematics Acquired . | . . . . . . . . . Robots Built . | . . . . . . . . . Authchips . | . . . . . . . . . Time . | . . . . . . . . . Total Robot Build Rating . | . . . . . . . . . Part Schematics Acquired 2 | . 2 . . . . . . . Parts Built . | . . . . . . . . . Authchips . | . . . . . . . . . Time . | . . . . . . . . . Total Part Build Rating . | . . . . . . . . . Parts Repaired 1 | . . . . . 1 . . . Time 38 | . . . . . 38 . . . Parts Recycled . | . . . . . . . . . Recycled Matter . | . . . . . . . . . Retrieved Matter . | . . . . . . . . . Retrieved Components 13 | . 10 . . . 3 . . . Parts Scanalyzed 1 | . . . . . 1 . . . Part Schematics Acquired . | . . . . . . . . . Parts Damaged . | . . . . . . . . . Bothacking | -11 -10 -10 -10 -9 -8 -8 -7 -7 ------------ Run | Scr Mat Min Exi Min Mat Gar Fac Was Used RIF Installer 1 | . . . . . . 1 . . Robots Hacked 5 | . . . . . . 1 4 . Non-combat . | . . . . . . . . . Combat 5 | . . . . . . 1 4 . Robot Hacks Applied 7 | . . . . . . 1 6 . find_garrison 2 | . . . . . . . 2 . spike_heat 1 | . . . . . . . 1 . streamctrl_high 1 | . . . . . . . 1 . formatsys_high 3 | . . . . . . 1 2 . Relay Couplers Released 13 | . . . . . 3 10 . . Machine Destruction 10 | . . . . . . 10 . . Programmers 3 | . . . . . 3 . . . Attached 3 | . . . . . . 1 2 . Fabnet Peak Effective % . | . . . . . . . . . Robots Rewired . | . . . . . . . . . Allies Hacked . | . . . . . . . . . Hacks Repelled . | . . . . . . . . . Allies | -11 -10 -10 -10 -9 -8 -8 -7 -7 -------- Run | Scr Mat Min Exi Min Mat Gar Fac Was Total Allies 4 | . . . . . . 1 3 . Largest Group 3 | . . . . . . 1 3 1 Highest-Rated Group 47 | . . . . . . 15 47 32 Highest-Rated Ally 32 | . . . . . . 15 32 32 Total Orders 12 | . . . . . . 2 10 . STAY 7 | . . . . . . 1 6 . FOLLOW 5 | . . . . . . 1 4 . Ally Attacks 40 | . . . . . . . 29 11 Total Damage 1023 | . . . . . . . 625 398 Kills 5 | . . . . . . . 5 . Allies Corrupted . | . . . . . . . . . Allies Melted . | . . . . . . . . . Intel | -11 -10 -10 -10 -9 -8 -8 -7 -7 ------- Run | Scr Mat Min Exi Min Mat Gar Fac Was Robot Analysis Total . | . . . . . . . . . Derelict Logs Recovered 2 | . . 1 . 1 . . . . Drone Launches . | . . . . . . . . . Drone Recoveries . | . . . . . . . . . Exploration | -11 -10 -10 -10 -9 -8 -8 -7 -7 ------------- Run | Scr Mat Min Exi Min Mat Gar Fac Was Turns Passed 9339 | 163 1193 692 1091 483 2324 1867 1423 103 Spaces Moved 4603 | 89 711 467 482 179 1062 811 767 35 Core 4 | 4 . . . . . . . . Treads 1794 | 10 11 . 395 179 762 437 . . Legs 504 | 75 429 . . . . . . . Wheels 2301 | . 271 467 87 . 300 374 767 35 Hover . | . . . . . . . . . Flight . | . . . . . . . . . Fastest Speed 50 | 50 120 140 140 240 135 145 130 150 Average Speed 167 | 121 128 140 222 240 162 197 151 150 Slowest Speed 320 | 160 320 140 320 240 243 243 205 150 Overloaded Moves . | . . . . . . . . . Propulsion Burnouts . | . . . . . . . . . Robots Hopped . | . . . . . . . . . Cave-ins Triggered . | . . . . . . . . . Exploration Rate (%) 56 | 4 92 87 89 50 53 81 22 27 Regions Visited 8 Branch Regions 3 Pre-discovered Areas 4 | . 1 1 1 . 1 . . . Known Exits Taken 1 | . . . . . 1 . . . Unknown Exits Taken 5 | 1 1 1 1 1 . . . . Scrap Searched 1 | . . 1 . . . . . . Spaces Dug 6 | . . . . . 6 . . . Terrain Destroyed 63 | . 24 . . 23 9 7 . . Melee . | . . . . . . . . . Projectile 9 | . . . . . 9 . . . AOE 54 | . 24 . . 23 . 7 . . Terrain Rammed . | . . . . . . . . . Walls Destroyed . | . . . . . . . . . Machines Disabled . | . . . . . . . . . Actions | -11 -10 -10 -10 -9 -8 -8 -7 -7 --------- Run | Scr Mat Min Exi Min Mat Gar Fac Was Total 5617 | 117 857 485 505 211 1441 995 949 57 Wait 295 | . 18 3 . 7 130 67 65 5 Move 4595 | 88 710 466 481 178 1061 809 767 35 Hop . | . . . . . . . . . Pick Up 86 | 5 21 2 9 3 27 11 7 1 Fast Attach 41 | 8 7 . . . 15 1 10 . Attach 23 | . 1 1 3 . 10 2 5 1 Detach 7 | 2 3 . . . 1 . 1 . Swap 80 | 1 4 . 1 4 30 12 28 . Drop 95 | . 11 . 11 3 42 12 14 2 Fire 335 | 13 82 13 . 16 123 40 35 13 Melee 16 | . . . . . . 7 9 . Ram . | . . . . . . . . . Kick . | . . . . . . . . . Crush 3 | . . . . . 2 1 . . Escape Stasis 41 | . . . . . . 33 8 . Rewire . | . . . . . . . . . Trap . | . . . . . . . . . Miscellaneous . | . . . . . . . . . Route ------- -11/Scrapyard -10/Materials (discovered 5 exits: [*Mat x3] / [*Min x2]) -10/Mines (discovered 3 exits: [*Mat x2] / *Exi) -10/Exiles -9/Mines -8/Materials (discovered 4 exits: *Fac / *Sto x2 / Gar) -8/Garrison (discovered 3 exits: *Fac x3) -7/Factory -7/Waste History --------- Turn | Location | Event 12 | -11/Scrapyard | Discovered new exit (range 16) 164 | -11/Scrapyard | Entered Materials 317 | -10/Materials | Build established: Mutant 328 | -10/Materials | Discovered new exit (range 11) 328 | -10/Materials | Discovered new exit (range 16) 505 | -10/Materials | Discovered new exit (range 14) 839 | -10/Materials | Discovered new exit (range 16) 872 | -10/Materials | Discovered new exit (range 17) 1357 | -10/Materials | Entered Mines 1373 | -10/Mines | Discovered new exit (range 7) 1452 | -10/Mines | Learned location of 1 exit from Materials 1587 | -10/Mines | Discovered new exit (range 5) 1642 | -10/Mines | Learned location of Storage (-8) 1704 | -10/Mines | Core integrity fell below 50% 2043 | -10/Mines | Deemed a non-threat by the Exiles lab entrance 2043 | -10/Mines | Discovered new exit (range 5) 2049 | -10/Mines | Entered Exiles 2083 | -10/Exiles | Met 8R-AWN 2125 | -10/Exiles | Met EX-HEX 2333 | -10/Exiles | Met EX-DEC 2345 | -10/Exiles | Learned location of Zion (-7) 2474 | -10/Exiles | Met EX-BIN 2508 | -10/Exiles | Aligned with FarCom system 2510 | -10/Exiles | Given EX-Vault access code 2568 | -10/Exiles | Opened EX-Vault 2585 | -10/Exiles | Found Firepult 2636 | -10/Exiles | Warned to stay clear of 0b10 Research branches 2798 | -10/Exiles | Visited The Gauntlet 3116 | -10/Exiles | Discovered new exit (range 10) 3140 | -10/Exiles | Left Exiles lab with Firepult 3140 | -10/Exiles | Entered Mines 3141 | -9/Mines | Met a Derelict testing a Signal Generator 3146 | -9/Mines | Found Signal Generator 3162 | -9/Mines | Learned Materials trap positions 3301 | -9/Mines | A weapon hastily lodged in a ceiling crevice suddenly fell to the ground 3381 | -9/Mines | Received a Rocket Launcher from a helpful Derelict 3485 | -9/Mines | Discovered new exit (range 16) 3623 | -9/Mines | Entered Materials 3623 | -8/Materials | Evolved 4 slots: Propulsion x1, Utility x2, Weapon x1 3624 | -8/Materials | Identified exit to Storage 3625 | -8/Materials | Loaded intel: 10 trap records 4032 | -8/Materials | Garrison activated, responded to threat 4042 | -8/Materials | Build established: Scavenger-Skirmisher 4201 | -8/Materials | Garrison activated, responded to threat 4637 | -8/Materials | Discovered exit to Storage (range 4) 4898 | -8/Materials | Build established: Tank 5308 | -8/Materials | Build established: Scavenger-Skirmisher 5663 | -8/Materials | Identified exit to Garrison 5774 | -8/Materials | Repaired Hvy. Assault Cannon 5841 | -8/Materials | Discovered new exit (range 12) 5947 | -8/Materials | Entered Garrison 5955 | -8/Garrison | Installed Relay Interface Framework 6068 | -8/Garrison | Triggered checkpoint 6086 | -8/Garrison | Garrison Relay disabled 6242 | -8/Garrison | Triggered checkpoint 6248 | -8/Garrison | Build established: Skirmisher 6255 | -8/Garrison | Triggered checkpoint 6336 | -8/Garrison | Triggered checkpoint 6416 | -8/Garrison | Triggered checkpoint 6516 | -8/Garrison | Garrison Relay disabled 6591 | -8/Garrison | Discovered new exit (range 14) 6846 | -8/Garrison | Discovered new exit (range 10) 7280 | -8/Garrison | Triggered checkpoint 7313 | -8/Garrison | Garrison Relay disabled 7377 | -8/Garrison | Discovered new exit (range 15) 7686 | -8/Garrison | Build established: Scavenger-Mutant 7814 | -8/Garrison | Entered Factory 7814 | -7/Factory | Accompanied by 1 ally 7814 | -7/Factory | Evolved 2 slots: Propulsion x1, Utility x1 8286 | -7/Factory | Build established: Scavenger-Tank 9237 | -7/Factory | Sucked down chute 9237 | -7/Factory | Entered Waste 9248 | -7/Waste | Spotted C-40 Crusher 9250 | -7/Waste | 1 allies followed down the chute 9252 | -7/Waste | EMP discharged 9272 | -7/Waste | Destroyed C-40 Crusher 9275 | -7/Waste | Spotted C-40 Crusher 9278 | -7/Waste | Build established: Tank 9300 | -7/Waste | Spotted C-40 Crusher 9310 | -7/Waste | Destroyed C-40 Crusher 9321 | -7/Waste | Spotted C-40 Crusher 9328 | -7/Waste | Crushed by Compactor (1 part destroyed, 2 dropped) 9331 | -7/Waste | Spotted C-40 Crusher 9334 | -7/Waste | Spotted C-40 Crusher 9339 | -7/Waste | Crushed by Compactor (1 part destroyed, 2 dropped) 9340 | -7/Waste | Self-destructed Last Messages --------------- 09306_ Dropped Imp. Heat Sink. 09307_ Dropped Med. Treads. 09308_ Acquired Hvy. Treads. 09310_ C-40 Crusher destroyed. 09310_ Switching to secondary target: C-40 Crusher. 09316_ Slug penetrates C-40 Crusher. 09317_ Imp. Cooling System crushed. 09318_ 313 Matter crushed. 09320_ 124 Matter crushed. 09321_ Med. Treads crushed. 09321_ Imp. Heat Sink crushed. 09325_ System corrupted: Matter fused (-9). 09326_ 51 Matter crushed. 09328_ Med. Treads crushed. 09328_ Arm. Wheel crushed. 09328_ Hrd. Medium Armor Plating crushed. 09334_ Broken Adv. Plasma Cannon crushed. 09339_ Arm. Wheel crushed. 09339_ Adv. Beam Rifle crushed. 09339_ Arm. Wheel crushed. Map ----- +----------------------------------------------------+ | ?????????????????????????????????????????????? | | ?????????????????????????????????????????????? | | ?????????????????????????????????????????????? | | ?????????????????????????????????????????????? | | ?????????????????????????????????????????????? | | ???????????????????????????? ?????????????? | | ???????????????????????????? #????????????? | | ???????????????????????????? #????????????? | | ???????????????????????????# #????????????? | | ???????????????????????????# #????????????? | | ???????????????????????????# #????????????? | | ??????????????????????????## #????????????? | | ?????????????????????????? #????????????? | | ?????????????????????????? #????????????? | | ??????????????????????????? #????????????? | | ??????????????????????????? #????????????? | | ???????????????????????????# #????????????? | | ?????????????############??# #????????????? | | ?????????????# #??# #????????????? | | ?????????????# #??# #????????????? | | ?????????????# * #### #####????????? | | ?????????????#! ?? | | ?????????????#= ?? | | ?????????????# CC CC CC ?? | | ?????????????# CC CC C ?? | | ?????????????# CC=@ #### ######## ??? | | ?????????????# ! CC #??# #????????? ??? | | ?????????????# #??# #????????????? | | ?????????????############??# #????????????? | | ???????????????????????????# #????????????? | | ??????????????????????????? ????????????? | | ??????????????????????????? ???????????? | | ??????????????????????????? #??????????? | | ??????????????????????????? #??????????? | | ??????????????????????????? #??????????? | | ??????????????????????????? ????????????? | | ???????????????????????????? ??????????????? | | ?????????????????????????????????????????????? | | ?????????????????????????????????????????????? | | ?????????????????????????????????????????????? | | ?????????????????????????????????????????????? | | ?????????????????????????????????????????????? | | ?????????????????????????????????????????????? | | ?????????????????????????????????????????????? | | ?????????????????????????????????????????????? | | ?????????????????????????????????????????????? | | ?????????????????????????????????????????????? | | ?????????????????????????????????????????????? | | ?????????????????????????????????????????????? | | ?????????????????????????????????????????????? | +----------------------------------------------------+ Best States ------------- Heat Dissipation 61 Energy Generation 15 Energy Capacity 250 Matter Stores 300 Matter Capacity 300 Sight Range 16 Terrain Scan Density 10 Armor Coverage 225 Resistance: KI 30 Core Shielding 20 Power Shielding 33 Evasion (%) 55 Targeting Accuracy 5 Recoil Reduction 3 Relay Coupler Types 1 Relay Coupler Value 29 Authchip Count 3 Item Schematics ----------------- Hcp. Storage Unit | -10/Materials | Hacked Huge Storage Unit | -10/Materials | Hacked Robot Schematics ------------------ None Fabricated ------------ Nothing Alien Tech Used ----------------- None Achievements -------------- None Challenges ------------ None Game ------ Seed BehemothAssaultCorpse Manual? 0 Play Time 00:51:46 Cumulative 553.5 hours Start 2022.03.21 @ 20:07:11 End 2022.03.21 @ 21:35:18 Sessions 3 Manual Loads 0 Difficulty Rogue Special Mode None Game No. 352 Rogue 352 Adventurer 0 Explorer 0 Win Type - Total 6 Types 4/0/1/0/1/0/0/0/0 Lore% 82 Gallery% 83 Achievement% 73 Wizard Run 0 Options --------- ASCII 0 Keyboard 0 Movement Mouse Keybinds 1 Fullscreen 2 Font 24/Smallcaps Map View 68x50 Tactical HUD 1 Map Filters NONE Filters NONE Steam 1 RUN: 47d82b8c-3edb-4884-ac0e-d5b43b67a009